[Event "Superettan 2017/2018"]
[Site "Vegagatan 20, Gothenburg, Sweden"]
[Date "2018.02.04"]
[Round "3.4"]
[White "Hultin, Johan"]
[Black "Mohammadi, Amir"]
[Result "1-0"]
[TimeControl "90 minutes for 40 moves + 30 minutes for the rest of the game + 30 seconds per move from move one."]
[WhiteTitle "FM"]
[WhiteFideId "1701983"]
[BlackFideId "1705890"]
[WhiteElo "2290"]
[BlackElo "2316"]

1. c4 {[%clk 01:30:56]} {[%emt 00:00:02]} f5 {[%clk 01:30:33]} {[%emt
00:00:29]} 2. g3 {[%clk 01:31:13]} {[%emt 00:00:13]} Nf6 {[%clk 01:30:57]}
{[%emt 00:00:06]} 3. Bg2 {[%clk 01:31:36]} {[%emt 00:00:06]} e6 {[%clk
01:31:22]} {[%emt 00:00:06]} 4. Nf3 {[%clk 01:31:42]} {[%emt 00:00:23]} d5
{[%clk 01:31:30]} {[%emt 00:00:22]} 5. cxd5 {[%clk 01:31:23]} {[%emt 00:00:49]}
exd5 {[%clk 01:31:27]} {[%emt 00:00:33]} 6. Nc3 {[%clk 01:31:39]} {[%emt
00:00:14]} c6 {[%clk 01:28:06]} {[%emt 00:03:52]} 7. e3 {[%clk 01:30:14]}
{[%emt 00:01:54]} Bd6 {[%clk 01:27:53]} {[%emt 00:00:44]} 8. O-O {[%clk
01:30:20]} {[%emt 00:00:23]} O-O {[%clk 01:28:16]} {[%emt 00:00:07]} 9. d3
{[%clk 01:30:23]} {[%emt 00:00:27]} Re8 {[%clk 01:23:30]} {[%emt 00:05:17]} 10.
b3 {[%clk 01:29:14]} {[%emt 00:01:39]} Nbd7 {[%clk 01:21:55]} {[%emt 00:02:05]}
11. Bb2 {[%clk 01:29:28]} {[%emt 00:02:32]} a5 {[%clk 01:16:06]} {[%emt
00:04:35]} 12. Re1 {[%clk 01:08:43]} {[%emt 00:21:39]} Nc5 {[%clk 01:12:36]}
{[%emt 00:03:10]} 13. a3 {[%clk 01:06:17]} {[%emt 00:04:19]} Qb6 {[%clk
01:08:39]} {[%emt 00:03:36]} 14. d4 {[%clk 00:35:03]} {[%emt 00:31:25]} Nce4
{[%clk 00:38:56]} {[%emt 00:29:54]} 15. Na4 {[%clk 00:27:20]} {[%emt 00:08:14]}
Qc7 {[%clk 00:37:14]} {[%emt 00:02:11]} 16. Qc2 {[%clk 00:27:28]} {[%emt
00:00:22]} Ng4 {[%clk 00:34:10]} {[%emt 00:03:35]} 17. Re2 {[%clk 00:27:51]}
{[%emt 00:00:07]} b6 {[%clk 00:27:34]} {[%emt 00:07:06]} 18. Ne1 {[%clk
00:25:27]} {[%emt 00:02:53]} Ba6 {[%clk 00:23:25]} {[%emt 00:04:40]} 19. Nd3
{[%clk 00:25:50]} {[%emt 00:00:06]} Re6 {[%clk 00:20:22]} {[%emt 00:03:33]} 20.
f4 {[%clk 00:15:06]} {[%emt 00:11:13]} Rae8 {[%clk 00:18:15]} {[%emt 00:02:37]}
21. Rae1 {[%clk 00:13:23]} {[%emt 00:02:13]} Qf7 {[%clk 00:13:43]} {[%emt
00:05:02]} 22. Bf1 {[%clk 00:10:24]} {[%emt 00:03:29]} Qh5 {[%clk 00:09:42]}
{[%emt 00:04:32]} 23. Rg2 {[%clk 00:06:12]} {[%emt 00:04:41]} Bxd3 {[%clk
00:05:44]} {[%emt 00:04:28]} 24. Bxd3 {[%clk 00:05:43]} {[%emt 00:00:59]} b5
{[%clk 00:04:42]} {[%emt 00:01:32]} 25. Nc5 {[%clk 00:04:59]} {[%emt 00:01:14]}
Nxc5 {[%clk 00:03:55]} {[%emt 00:01:17]} 26. dxc5 {[%clk 00:05:24]} {[%emt
00:00:05]} Rxe3 {[%clk 00:02:18]} {[%emt 00:02:07]} 27. Rf1 {[%clk 00:02:27]}
{[%emt 00:03:27]} Rxd3 {[%clk 00:01:26]} {[%emt 00:01:23]} 28. cxd6 {[%clk
00:02:42]} {[%emt 00:00:14]} Rde3 {[%clk 00:01:13]} {[%emt 00:00:43]} 29. d7
{[%clk 00:02:41]} {[%emt 00:00:31]} Rd8 {[%clk 00:01:36]} {[%emt 00:00:08]} 30.
Qxc6 {[%clk 00:03:07]} {[%emt 00:00:04]} Qf7 {[%clk 00:01:53]} {[%emt
00:00:12]} 31. h3 {[%clk 00:03:13]} {[%emt 00:00:24]} Re6 {[%clk 00:01:00]}
{[%emt 00:01:23]} 32. Qc8 {[%clk 00:03:17]} {[%emt 00:00:26]} Qxd7 {[%clk
00:00:33]} {[%emt 00:00:56]} 33. Qxd7 {[%clk 00:03:42]} {[%emt 00:00:05]} Rxd7
{[%clk 00:00:55]} {[%emt 00:00:08]} 34. hxg4 {[%clk 00:04:08]} {[%emt
00:00:04]} Re3 {[%clk 00:00:42]} {[%emt 00:00:43]} 35. b4 {[%clk 00:03:26]}
{[%emt 00:01:13]} axb4 {[%clk 00:00:52]} {[%emt 00:00:20]} 36. axb4 {[%clk
00:03:55]} {[%emt 00:00:01]} fxg4 {[%clk 00:01:03]} {[%emt 00:00:19]} 37. Bd4
{[%clk 00:03:18]} {[%emt 00:01:07]} Rb3 {[%clk 00:00:56]} {[%emt 00:00:37]} 38.
Bc5 {[%clk 00:03:41]} {[%emt 00:00:07]} Kf7 {[%clk 00:00:40]} {[%emt 00:00:47]}
39. Kh2 {[%clk 00:03:41]} {[%emt 00:00:29]} d4 {[%clk 00:00:59]} {[%emt
00:00:12]} 40. Re1 {[%clk 00:03:22]} {[%emt 00:00:49]} Rc3 {[%clk 00:00:48]}
{[%emt 00:00:41]} 41. Rd2 {[%clk 00:01:45]} {[%emt 00:02:07]} d3 {[%clk
00:30:19]} {[%emt 00:01:00]} 42. Kg2 {[%clk 00:31:51]} {[%emt 00:00:23]} h5
{[%clk 00:24:54]} {[%emt 00:05:55]} 43. Kf2 {[%clk 00:30:19]} {[%emt 00:02:02]}
Rd5 {[%clk 00:23:50]} {[%emt 00:01:35]} 44. Re4 {[%clk 00:30:05]} {[%emt
00:00:42]} Kg6 {[%clk 00:22:27]} {[%emt 00:01:53]} 45. Ke3 {[%clk 00:30:12]}
{[%emt 00:00:23]} Kf5 {[%clk 00:22:54]} {[%emt 00:00:03]} 46. Re8 {[%clk
00:22:47]} {[%emt 00:07:55]} Rb3 {[%clk 00:20:25]} {[%emt 00:02:59]} 47. Rf8+
{[%clk 00:22:45]} {[%emt 00:00:32]} Kg6 {[%clk 00:20:23]} {[%emt 00:00:32]} 48.
Ke4 {[%clk 00:22:39]} {[%emt 00:00:36]} Rd7 {[%clk 00:20:43]} {[%emt 00:00:10]}
49. Rb8 {[%clk 00:22:48]} {[%emt 00:00:21]} Rb1 {[%clk 00:20:43]} {[%emt
00:00:30]} 50. Rb6+ {[%clk 00:21:32]} {[%emt 00:01:45]} Kh7 {[%clk 00:21:10]}
{[%emt 00:00:03]} 51. Rd6 {[%clk 00:20:59]} {[%emt 00:01:03]} Re7+ {[%clk
00:21:06]} {[%emt 00:00:35]} 52. Kd5 {[%clk 00:21:17]} {[%emt 00:00:12]} Rb3
{[%clk 00:20:51]} {[%emt 00:00:45]} 53. Kc6 {[%clk 00:21:35]} 1-0

[Event "Superettan 2017/2018"]
[Site "Vegagatan 20, Gothenburg, Sweden"]
[Date "2018.02.04"]
[Round "3.5"]
[White "Svenn, Gosta"]
[Black "Storme, Isak"]
[Result "0-1"]
[TimeControl "90 minutes for 40 moves + 30 minutes for the rest of the game + 30 seconds per move from move one."]
[WhiteTitle "FM"]
[BlackTitle "CM"]
[WhiteFideId "1700553"]
[BlackFideId "1728113"]
[WhiteElo "2307"]
[BlackElo "2213"]

1. d4 {[%clk 01:30:55]} {[%emt 00:00:04]} Nf6 {[%emt 00:00:12]} 2. c4 {[%clk
01:31:13]} {[%emt 00:00:08]} c5 {[%clk 01:31:12]} {[%emt 00:00:09]} 3. d5
{[%clk 01:31:39]} {[%emt 00:00:05]} e6 {[%clk 01:31:35]} {[%emt 00:00:07]} 4.
Nc3 {[%clk 01:32:04]} {[%emt 00:00:05]} exd5 {[%clk 01:32:00]} {[%emt
00:00:06]} 5. cxd5 {[%clk 01:32:29]} {[%emt 00:00:04]} d6 {[%clk 01:32:24]}
{[%emt 00:00:07]} 6. e4 {[%clk 01:32:53]} {[%emt 00:00:05]} g6 {[%clk
01:32:34]} {[%emt 00:00:20]} 7. Nf3 {[%clk 01:32:49]} {[%emt 00:00:34]} Bg7
{[%clk 01:32:32]} {[%emt 00:00:32]} 8. Bg5 {[%clk 01:33:02]} {[%emt 00:00:17]}
O-O {[%clk 01:29:28]} {[%emt 00:03:34]} 9. Nd2 {[%clk 01:32:13]} {[%emt
00:01:19]} h6 {[%clk 01:27:30]} {[%emt 00:02:28]} 10. Bh4 {[%clk 01:32:29]}
{[%emt 00:00:13]} a6 {[%clk 01:27:27]} {[%emt 00:00:33]} 11. a4 {[%clk
01:32:46]} {[%emt 00:00:14]} Re8 {[%clk 01:25:53]} {[%emt 00:02:04]} 12. Be2
{[%clk 01:32:46]} {[%emt 00:00:30]} Nbd7 {[%clk 01:19:30]} {[%emt 00:07:23]} 13.
O-O {[%clk 01:32:50]} {[%emt 01:25:48]} g5 {[%clk 01:12:11]} {[%emt 00:00:02]}
14. Bg3 {[%clk 01:33:12]} Ne5 {[%clk 01:12:35]} 15. Qc2 {[%clk 01:20:29]} Ng6
{[%clk 01:02:01]} 16. Nc4 {[%clk 01:08:14]} Nf4 {[%clk 01:00:43]} 17. a5 {[%clk
01:07:01]} Qe7 {[%clk 00:48:49]} 18. Rfe1 {[%clk 00:56:31]} Nd7 {[%clk
00:47:08]} 19. Rad1 {[%clk 00:41:24]} {[%emt 00:03:53]} Ne5 {[%clk 00:45:44]}
{[%emt 00:01:55]} 20. Nxe5 {[%clk 00:30:28]} {[%emt 00:11:27]} Bxe5 {[%clk
00:45:58]} {[%emt 00:00:16]} 21. Na4 {[%clk 00:30:40]} {[%emt 00:00:17]} Rb8
{[%clk 00:38:05]} {[%emt 00:08:22]} 22. Nb6 {[%clk 00:30:15]} {[%emt 00:00:56]}
Qf6 {[%clk 00:32:12]} {[%emt 00:06:24]} 23. Nc4 {[%clk 00:28:11]} {[%emt
00:02:34]} Bd4 {[%clk 00:30:36]} {[%emt 00:02:36]} 24. h3 {[%clk 00:17:21]}
{[%emt 00:11:50]} Bd7 {[%clk 00:22:36]} {[%emt 00:08:30]} 25. b4 {[%clk
00:11:44]} {[%emt 00:06:06]} Bb5 {[%clk 00:14:47]} {[%emt 00:08:18]} 26. bxc5
{[%clk 00:10:33]} {[%emt 00:01:40]} Bxc5 {[%clk 00:15:09]} {[%emt 00:00:10]} 27.
Bf1 {[%clk 00:04:06]} {[%emt 00:06:57]} Rbc8 {[%clk 00:13:05]} {[%emt
00:02:34]} 28. Qb3 {[%clk 00:04:16]} {[%emt 00:00:20]} Nh5 {[%clk 00:12:23]}
{[%emt 00:01:12]} 29. Rc1 {[%clk 00:02:51]} {[%emt 00:01:55]} Nxg3 {[%clk
00:09:54]} {[%emt 00:02:59]} 30. Qxg3 {[%clk 00:03:15]} {[%emt 00:00:05]} Bb4
{[%clk 00:08:30]} {[%emt 00:01:55]} 31. Re3 {[%clk 00:03:28]} {[%emt 00:00:17]}
Bxc4 {[%clk 00:06:45]} {[%emt 00:02:15]} 32. Rxc4 {[%clk 00:03:18]} {[%emt
00:00:40]} Rxc4 {[%clk 00:06:42]} {[%emt 00:00:32]} 33. Bxc4 {[%clk 00:03:42]}
{[%emt 00:00:05]} Bd2 {[%clk 00:04:04]} {[%emt 00:03:10]} 34. Rf3 {[%clk
00:01:12]} {[%emt 00:03:00]} Bf4 {[%clk 00:03:29]} {[%emt 00:01:05]} 35. Qg4
{[%clk 00:01:31]} {[%emt 00:00:10]} Qa1+ {[%clk 00:02:02]} {[%emt 00:01:57]} 36.
Bf1 {[%clk 00:01:57]} {[%emt 00:00:05]} Rxe4 {[%clk 00:01:27]} {[%emt
00:01:05]} 37. g3 {[%clk 00:00:59]} {[%emt 00:01:28]} Re1 {[%clk 00:01:41]}
{[%emt 00:00:15]} 38. Qc8+ {[%clk 00:00:58]} {[%emt 00:00:31]} Kg7 {[%clk
00:01:59]} {[%emt 00:00:11]} 39. Qc4 {[%clk 00:01:23]} {[%emt 00:00:05]} Be5
{[%clk 00:01:53]} {[%emt 00:00:35]} 40. Kg2 {[%clk 00:00:47]} {[%emt 00:01:08]}
Rc1 {[%clk 00:00:50]} {[%emt 00:01:32]} 41. Qg4 {[%clk 00:12:55]} {[%emt
00:18:22]} Bf6 {[%clk 00:23:59]} {[%emt 00:07:22]} 42. Rxf6 {[%clk 00:01:53]}
{[%emt 00:11:32]} Kxf6 {[%clk 00:22:23]} {[%emt 00:02:05]} 43. Qf3+ {[%clk
00:01:47]} {[%emt 00:00:37]} Kg7 {[%clk 00:22:20]} {[%emt 00:00:34]} 44. Bd3
{[%clk 00:02:11]} {[%emt 00:00:05]} Qe5 {[%clk 00:21:51]} {[%emt 00:00:58]} 45.
Be4 {[%clk 00:02:07]} {[%emt 00:00:35]} Rc4 {[%clk 00:21:45]} {[%emt 00:00:35]}
0-1

[Event "Superettan 2017/2018"]
[Site "Vegagatan 20, Gothenburg, Sweden"]
[Date "2018.02.04"]
[Round "3.6"]
[White "Fendrich, David"]
[Black "Madebrink, Lars"]
[Result "1-0"]
[TimeControl "90 minutes for 40 moves + 30 minutes for the rest of the game + 30 seconds per move from move one."]
[WhiteFideId "1705725"]
[BlackFideId "1701347"]
[WhiteElo "2244"]
[BlackElo "2205"]

1. Nf3 {[%clk 01:30:57]} {[%emt 00:00:02]} Nf6 {[%clk 01:30:52]} {[%emt
00:00:08]} 2. g3 {[%clk 01:31:21]} {[%emt 00:00:07]} b5 {[%clk 01:31:15]}
{[%emt 00:00:07]} 3. Bg2 {[%clk 01:31:37]} {[%emt 00:00:14]} Bb7 {[%clk
01:31:40]} {[%emt 00:00:06]} 4. Na3 {[%clk 01:31:59]} {[%emt 00:00:08]} a6
{[%clk 01:30:55]} {[%emt 00:01:15]} 5. c4 {[%clk 01:32:15]} {[%emt 00:00:14]}
bxc4 {[%clk 01:25:26]} {[%emt 00:05:58]} 6. Nxc4 {[%clk 01:32:24]} {[%emt
00:00:21]} c5 {[%clk 01:25:26]} {[%emt 00:00:30]} 7. Nce5 {[%clk 01:23:06]}
{[%emt 00:09:47]} d6 {[%clk 01:24:33]} {[%emt 00:01:29]} 8. Nxf7 {[%clk
01:20:33]} {[%emt 00:03:39]} Kxf7 {[%clk 01:21:44]} {[%emt 00:03:09]} 9. Qb3+
{[%clk 01:12:40]} {[%emt 00:07:54]} d5 {[%clk 01:16:55]} {[%emt 00:06:19]} 10.
Ne5+ {[%clk 01:06:45]} {[%emt 00:05:33]} Ke6 {[%clk 01:11:49]} {[%emt
00:05:25]} 11. Qxb7 {[%clk 01:05:22]} {[%emt 00:02:00]} Kxe5 {[%clk 01:11:40]}
{[%emt 00:02:01]} 12. Qxa8 {[%clk 01:01:26]} {[%emt 00:03:01]} Kd6 {[%clk
01:05:31]} {[%emt 00:06:50]} 13. d4 {[%clk 00:54:03]} {[%emt 00:07:49]} cxd4
{[%clk 01:05:35]} {[%emt 00:00:35]} 14. Bd2 {[%clk 00:52:19]} {[%emt 00:02:08]}
Qb6 {[%clk 01:02:55]} {[%emt 00:02:56]} 15. Rc1 {[%clk 00:46:34]} {[%emt
00:06:44]} Nc6 {[%clk 00:51:26]} {[%emt 00:11:48]} 16. Bh3 {[%clk 00:29:32]}
{[%emt 00:17:12]} g5 {[%clk 00:42:22]} {[%emt 00:09:34]} 17. Rxc6+ {[%clk
00:28:29]} {[%emt 00:01:34]} Qxc6 {[%clk 00:42:15]} {[%emt 00:00:37]} 18. Bb4+
{[%clk 00:28:24]} {[%emt 00:00:35]} Kc7 {[%clk 00:42:17]} {[%emt 00:00:27]} 19.
Ba5+ {[%clk 00:28:36]} {[%emt 00:00:17]} Kd6 {[%clk 00:42:30]} {[%emt
00:00:17]} 20. Qb8+ {[%clk 00:28:52]} {[%emt 00:00:15]} 1-0

[Event "Superettan 2017/2018"]
[Site "Vegagatan 20, Gothenburg, Sweden"]
[Date "2018.02.04"]
[Round "3.7"]
[White "Svenn, Matti"]
[Black "Outgajjouft, Said"]
[Result "1/2-1/2"]
[TimeControl "90 minutes for 40 moves + 30 minutes for the rest of the game + 30 seconds per move from move one."]
[WhiteFideId "1705091"]
[BlackFideId "1716174"]
[WhiteElo "2166"]
[BlackElo "2037"]

1. d4 {[%clk 01:30:56]} {[%emt 00:00:04]} d5 {[%clk 01:30:34]} {[%emt
00:00:27]} 2. Nf3 {[%clk 01:31:18]} {[%emt 00:00:08]} Nf6 {[%clk 01:30:46]}
{[%emt 00:00:17]} 3. Bf4 {[%clk 01:31:42]} {[%emt 00:00:06]} Nbd7 {[%clk
01:30:36]} {[%emt 00:00:41]} 4. e3 {[%clk 01:31:13]} {[%emt 00:00:59]} e6
{[%clk 01:29:50]} {[%emt 00:01:17]} 5. h3 {[%clk 01:31:18]} {[%emt 00:00:25]}
c5 {[%clk 01:27:01]} {[%emt 00:03:19]} 6. c3 {[%clk 01:28:11]} {[%emt
00:03:37]} Qb6 {[%clk 01:23:08]} {[%emt 00:04:24]} 7. Qc2 {[%clk 01:19:48]}
{[%emt 00:09:24]} Bd6 {[%clk 01:22:03]} {[%emt 00:01:06]} 8. Bxd6 {[%clk
01:06:06]} {[%emt 01:20:54]} Qxd6 {[%clk 01:21:55]} 9. Nbd2 {[%clk 01:06:30]}
O-O {[%clk 01:18:15]} {[%emt 00:00:01]} 10. Be2 {[%clk 01:06:43]} Re8 {[%clk
01:13:28]} 11. O-O {[%clk 01:06:58]} e5 {[%clk 01:13:42]} 12. dxe5 Nxe5 {[%clk
01:13:54]} 13. Rad1 {[%clk 00:54:14]} b6 {[%clk 01:00:08]} 14. c4 {[%clk
00:44:33]} Bb7 {[%clk 00:54:48]} 15. cxd5 {[%clk 00:44:11]} Bxd5 {[%clk
00:53:58]} 16. Nc4 {[%clk 00:25:45]} {[%emt 00:09:40]} Nxf3+ {[%clk 00:50:44]}
{[%emt 00:03:43]} 17. Bxf3 {[%clk 00:26:09]} {[%emt 00:00:06]} Qe6 {[%clk
00:50:53]} {[%emt 00:00:21]} 18. Bxd5 {[%clk 00:19:44]} {[%emt 00:06:55]} Nxd5
{[%clk 00:50:56]} {[%emt 00:00:28]} 19. Qd2 {[%clk 00:17:03]} {[%emt 00:03:11]}
Nf6 {[%clk 00:50:29]} {[%emt 00:00:56]} 20. b3 {[%clk 00:17:20]} {[%emt
00:00:14]} h6 {[%clk 00:50:00]} {[%emt 00:00:58]} 21. Qd6 {[%clk 00:16:48]}
{[%emt 00:01:03]} Qe4 {[%clk 00:48:46]} {[%emt 00:01:44]} 22. Qd3 {[%clk
00:15:38]} {[%emt 00:01:40]} Qe6 {[%clk 00:46:20]} {[%emt 00:02:56]} 23. Qd6
{[%clk 00:15:51]} {[%emt 00:00:16]} Qe4 {[%clk 00:46:35]} {[%emt 00:00:15]} 24.
Qd3 {[%clk 00:16:19]} {[%emt 00:00:03]} Qe6 {[%clk 00:46:40]} {[%emt 00:00:24]}
25. Qd6 {[%clk 00:16:43]} {[%emt 00:00:06]} 1/2-1/2

[Event "Superettan 2017/2018"]
[Site "Vegagatan 20, Gothenburg, Sweden"]
[Date "2018.02.04"]
[Round "3.8"]
[White "Al Waeli, Laith"]
[Black "Borvander, Tom"]
[Result "1-0"]
[TimeControl "90 minutes for 40 moves + 30 minutes for the rest of the game + 30 seconds per move from move one."]
[WhiteTitle "FM"]
[WhiteFideId "4801059"]
[BlackFideId "1707388"]
[WhiteElo "2069"]
[BlackElo "2126"]

1. d4 {[%clk 01:12:59]} {[%emt 00:18:01]} Nf6 {[%clk 01:30:26]} {[%emt
00:00:35]} 2. c4 {[%clk 01:12:35]} {[%emt 00:00:53]} g6 {[%clk 01:30:49]}
{[%emt 00:00:07]} 3. Nc3 {[%clk 01:12:46]} {[%emt 00:00:17]} Bg7 {[%clk
01:31:03]} {[%emt 00:00:31]} 4. e4 {[%clk 01:12:21]} {[%emt 00:01:32]} d6
{[%clk 01:31:21]} {[%emt 00:00:05]} 5. f3 {[%clk 01:10:58]} {[%emt 01:24:59]}
O-O {[%clk 01:31:28]} 6. Be3 {[%clk 01:11:21]} c5 {[%clk 01:29:43]} {[%emt
00:00:02]} 7. d5 {[%clk 01:09:54]} e6 {[%clk 01:26:42]} 8. Nge2 {[%clk
01:10:09]} a6 {[%clk 01:26:20]} 9. Qd2 {[%clk 00:56:53]} exd5 {[%clk 01:25:36]}
10. cxd5 {[%clk 00:54:33]} Re8 {[%clk 01:25:44]} 11. a4 {[%clk 00:44:01]} Nbd7
{[%clk 01:20:03]} 12. Ng3 {[%clk 00:40:14]} h5 {[%clk 01:18:22]} 13. Be2 {[%clk
00:39:03]} h4 {[%clk 01:11:57]} 14. Nf1 {[%clk 00:39:15]} Nh7 {[%clk 01:12:16]}
15. Qc2 {[%clk 00:33:05]} Ne5 {[%clk 01:07:39]} 16. Nd2 {[%clk 00:33:23]} h3
{[%clk 01:06:23]} 17. g4 {[%clk 00:32:07]} Qa5 {[%clk 00:57:07]} {[%emt
00:01:42]} 18. Rg1 {[%clk 00:31:34]} {[%emt 00:01:03]} f6 {[%clk 00:25:53]}
{[%emt 00:31:44]} 19. f4 {[%clk 00:30:43]} {[%emt 00:01:22]} Nf7 {[%clk
00:26:18]} {[%emt 00:00:05]} 20. Nc4 {[%clk 00:30:03]} {[%emt 00:01:10]} Qc7
{[%clk 00:26:21]} {[%emt 00:00:25]} 21. Rg3 {[%clk 00:22:20]} {[%emt 00:08:15]}
Bd7 {[%clk 00:26:18]} {[%emt 00:00:33]} 22. a5 {[%clk 00:21:38]} {[%emt
00:01:12]} Nh6 {[%clk 00:23:21]} {[%emt 00:03:28]} 23. e5 {[%clk 00:19:43]}
{[%emt 00:02:25]} fxe5 {[%clk 00:12:59]} {[%emt 00:10:52]} 24. fxe5 {[%clk
00:20:05]} {[%emt 00:00:08]} Nf8 {[%clk 00:12:31]} {[%emt 00:00:57]} 25. e6
{[%clk 00:19:21]} {[%emt 00:01:14]} Nxe6 {[%clk 00:03:16]} {[%emt 00:09:46]} 26.
Bxh6 {[%clk 00:14:06]} {[%emt 00:05:44]} Bxh6 {[%clk 00:03:33]} {[%emt
00:00:13]} 27. Qxg6+ {[%clk 00:14:29]} {[%emt 00:00:07]} Bg7 {[%clk 00:03:47]}
{[%emt 00:00:16]} 28. Rf3 {[%clk 00:10:35]} {[%emt 00:04:24]} Nf8 {[%clk
00:03:30]} {[%emt 00:00:48]} 29. Qf7+ {[%clk 00:10:52]} {[%emt 00:00:13]} Kh8
{[%clk 00:03:49]} {[%emt 00:00:11]} 30. Rxh3 {[%clk 00:11:10]} {[%emt
00:00:12]} Nh7 {[%clk 00:04:07]} {[%emt 00:00:12]} 31. O-O-O {[%clk 00:10:00]}
{[%emt 00:01:40]} 1-0